Cogmind - Beta 17 @@@ ROGUE MODE // 2026.06.26 @ 20:15:59 Player: HybriD Result: Destroyed by H-71 Marshal with Heavy Mass Driver Performance ------------- Evolutions (5) 2500 Regions Visited (11) 2200 Robots Destroyed (67) 335 Value Destroyed (2823) 2823 Prototype IDs (20) 400 Alien Tech Used (0) 0 Bonus (2607) 2607 TOTAL SCORE: 10865 Bonus ------- High Alert Combat Kills 474 Follower Combat Kills 1894 Met Data Miner 300 Friendly Fire -61 Cogmind --------- Core Integrity 0/1000 Matter 295/300 Energy 95/100 System Corruption 10% Temperature Cool (0) Movement Core (50) Location -5/Factory Parts ------- > --- POWER (3) -------- (None) > --- PROPULSION (5) --- (None) > --- UTILITY (7) ------ (None) > --- WEAPON (2) ------- (None) > --- INVENTORY (5) ---- Medium Storage Unit Peak State ------------ > --- POWER ------------ Deuterium Engine Light Angular Momentum Engine Light Neutrino Core > --- PROPULSION ------- Carbon-fiber Leg Carbon-fiber Leg Flexi-carbon Leg Flexi-carbon Leg Enhanced Flexi-carbon Leg > --- UTILITY ---------- Medium Storage Unit Armor Integrity Analyzer Improved Particle Charger Improved Cloaking Device Layered Heavy Armor Plating Improved System Shield > --- WEAPON ----------- Heavy Beamcaster Bore Cannon > --- INVENTORY -------- Improved Deuterium Engine Carbon-fiber Leg Carbon-fiber Leg Armored Leg Advanced Heat Sink Improved Melee Analysis Suite Force Field Powered Hammer Powered Hammer Powered Hammer [Rating: 87] Favorites ----------- Power Light Nuclear Core Engine Deuterium Engine Power Core Light Nuclear Core Propulsion Carbon-fiber Leg Treads Improved Medium Treads Leg Carbon-fiber Leg Hover Unit Improved Hover Unit Flight Unit Cooled VTOL Module Utility Small Storage Unit Device Weight Redist. System Storage Small Storage Unit Processor Improved Salvage Targeting Computer Hackware Hacking Suite Protection Layered Medium Armor Plating Weapon Autogun Energy Gun Wave Gun Energy Cannon Heavy Particle Cannon Ballistic Gun Autogun Ballistic Cannon Bore Cannon Launcher Grenade Launcher Special Weapon Plasma Cutter Impact Weapon Powered Hammer Build | -11 -10 -9 -9 -8 -7 -7 -7 -6 -6 -6 -5 ------- Run | Yrd Mat Mat Min Mat Fac Low Dat Pro Fac Ext Fac Slots Evolved 10 | . . 2 . 2 2 . . . 2 . 2 Power 2 | . . . . 1 . . . . . . 1 Propulsion 3 | . . 1 . 1 . . . . 1 . . Utility 5 | . . 1 . . 2 . . . 1 . 1 Weapon . | . . . . . . . . . . . . Parts Attached 124 | 6 9 2 5 1 18 . . 11 14 31 27 Power 18 | 1 1 1 . 1 3 . . 1 3 3 4 Engine 9 | 1 1 1 . 1 . . . . 2 2 1 Core 9 | . . . . . 3 . . 1 1 1 3 Reactor . | . . . . . . . . . . . . Propulsion 44 | 2 4 1 1 . 6 . . 2 8 12 8 Treads 6 | . 2 . . . 2 . . 1 . 1 . Leg 29 | 2 . . . . 1 . . 1 6 11 8 Wheel . | . . . . . . . . . . . . Hover 4 | . . . . . 2 . . . 2 . . Flight 5 | . 2 1 1 . 1 . . . . . . Utility 33 | 1 2 . 1 . 4 . . 4 2 9 10 Device 15 | . 2 . 1 . 2 . . 2 1 2 5 Storage 4 | 1 . . . . 1 . . 1 . . 1 Processor 6 | . . . . . . . . 1 1 2 2 Hackware 2 | . . . . . 1 . . . . 1 . Protection 6 | . . . . . . . . . . 4 2 Artifact . | . . . . . . . . . . . . Weapon 29 | 2 2 . 3 . 5 . . 4 1 7 5 Energy Gun 8 | 1 . . 1 . 2 . . 1 1 2 . Energy Cannon 3 | . . . 1 . . . . . . 2 . Ballistic Gun 7 | 1 . . . . 1 . . 2 . 2 1 Ballistic Cannon 1 | . . . . . . . . . . . 1 Launcher 4 | . 2 . . . 1 . . . . 1 . Special Weapon 3 | . . . 1 . 1 . . 1 . . . Impact Weapon 3 | . . . . . . . . . . . 3 Slashing Weapon . | . . . . . . . . . . . . Piercing Weapon . | . . . . . . . . . . . . Special Melee Weapon . | . . . . . . . . . . . . Unidentified Prototypes 5 | . . . . . 2 . . . 1 . 2 Corrupted Parts 1 | . . . . . . . . . . . 1 System Corruption 10 | . . . . . . . . . . . 10 Parts Lost 74 | . . . . 1 11 1 . 12 5 19 25 Power 12 | . . . . . 1 . . 2 1 2 6 Propulsion 27 | . . . . 1 4 . . 4 4 5 9 Utility 19 | . . . . . 1 . . 4 . 7 7 Weapon 16 | . . . . . 5 1 . 2 . 5 3 Highest Loss Streak 17 | . . . . 1 4 1 . 6 3 17 14 To Critical Strikes 3 | . . . . . . . . 1 . 1 1 Average Backups 6 | 4 5 6 6 6 7 5 5 6 7 5 5 Power 1 | 1 1 1 1 1 2 2 2 2 2 1 . Propulsion . | . . 1 . . . . . . . . 1 Utility 2 | . . 1 2 2 2 3 3 4 3 2 1 Weapon 1 | 2 3 2 3 3 2 . . . 2 1 1 Tool/Special . | . . . . . . . . . . . . Unused Backups 7 | . 2 . . 1 3 . . . . 1 . Power 2 | . . . . . 1 . . . . 1 . Propulsion 2 | . 2 . . . . . . . . . . Utility 2 | . . . . 1 1 . . . . . . Weapon 1 | . . . . . 1 . . . . . . Tool/Special . | . . . . . . . . . . . . Average Slot Usage (%) 84 | . 92 99 100 79 79 98 100 82 83 85 78 Engine 5 | . 14 11 11 10 5 . . . 6 10 8 Core 5 | . . . . . 6 15 15 11 3 1 3 Treads 1 | . 1 . . . . 7 7 3 . 1 . Leg 12 | . 19 . . . 2 7 7 6 15 24 23 Hover 2 | . . . . . 11 7 7 . 2 1 . Flight 5 | . 6 33 33 25 3 7 7 7 3 . . Device 12 | . 8 21 22 18 17 23 23 10 10 7 9 Storage 9 | . 14 11 11 9 10 7 7 14 13 5 1 Processor 4 | . . . . . . . . 3 6 7 8 Hackware 5 | . . . . . 5 7 7 7 6 4 4 Protection 1 | . . . . . . . . . . 4 4 Energy Gun 5 | . 3 . 11 . 7 2 . 4 5 7 5 Ballistic Gun 3 | . 3 . . . 1 . . 7 5 2 . Launcher 2 | . 21 22 . 16 1 7 7 . . 1 . Special Weapon 1 | . . . 4 . 3 3 7 . . . . Peak Build Rating 87 | 6 11 13 14 18 42 41 41 46 57 71 87 Average Rating 42 | 2 7 12 13 14 28 40 41 39 46 53 64 On Entrance 28 | . 6 11 13 14 12 41 41 41 36 53 71 Avg Prop Armor Cover (%) 5 | . . . . . 6 13 13 4 3 6 . Naked Turns 8 | . . . . . . . . . . 3 5 Heaviest Build 75 | 11 15 17 17 18 27 27 25 34 44 44 75 Greatest Support 98 | 20 46 18 18 18 28 21 21 36 75 95 98 Greatest Overweight (x) 4 | . 1 . . 1 2 1 1 2 1 4 . Average Overweight (x) . | . . . . . . 1 1 . . . . Largest Inventory Capacity 10 | 8 8 8 8 8 8 8 8 8 8 8 10 Average Capacity 7 | 7 8 8 8 8 8 8 8 8 8 6 6 Most Carried 10 | 6 8 7 7 8 8 6 5 8 8 8 10 Average Carried 6 | 4 5 6 6 6 7 5 5 6 7 5 5 Final Capacity 8 | 8 8 8 8 8 8 8 8 8 8 5 5 Final Carried 8 | 2 8 7 6 8 6 5 5 6 8 5 1 Class Distribution -------------------- 47% | Mutant 35% | Scavenger-Mutant 7% | Derelict-Mutant 6% | Sprinter Dominant Class ---------------- Mutant | -10/Materials Sprinter | -9/Materials Sprinter | -9/Mines Sprinter | -8/Materials Mutant | -7/Factory Mutant | -7/Lower Caves Mutant | -7/Data Miner Mutant | -6/Proximity Caves Scavenger-Mutant | -6/Factory Scavenger-Mutant | -6/Extension Scavenger-Mutant | -5/Factory Resources | -11 -10 -9 -9 -8 -7 -7 -7 -6 -6 -6 -5 ----------- Run | Yrd Mat Mat Min Mat Fac Low Dat Pro Fac Ext Fac Matter Collected 2639 | 231 56 . 107 205 344 8 . 515 329 540 304 Remotely . | . . . . . . . . . . . . Salvage Created 1855 | . 67 . 107 122 212 175 . 156 402 207 407 Parts 74 | . 6 . 1 7 9 6 . 4 19 12 10 Haulers Intercepted . | . . . . . . . . . . . . Recyclers Shooed 1 | . . . . . . . . . 1 . . Parts Field Recycled . | . . . . . . . . . . . . Retrieved Matter . | . . . . . . . . . . . . Parts Self-Destructed 7 | . . . . . . 2 . 5 . . . Prevented 1 | . . . . . . 1 . . . . . Parts Restored . | . . . . . . . . . . . . Kills | -11 -10 -9 -9 -8 -7 -7 -7 -6 -6 -6 -5 ------- Run | Yrd Mat Mat Min Mat Fac Low Dat Pro Fac Ext Fac Combat Hostiles Destroyed 54 | . 3 . 2 4 8 9 . 8 6 4 10 Melee 2 | . . . . . . . . . . . 2 Guns 12 | . . . 1 . 2 . . 3 2 1 3 Cannons 5 | . . . 1 . 1 . . 2 . 1 . AOE 30 | . 3 . . 4 5 9 . 3 4 2 . Classes Destroyed 15 | . 3 . 1 3 1 1 . 2 . 2 2 Worker 7 | . . . . 2 . . . . 5 . . Builder 2 | . 1 . . . . . . . . 1 . Recycler 2 | . 1 . . . . . . . 1 . . Operator 2 | . . . . . . . . . . 2 . Drone 2 | . . . . . . . . 2 . . . Swarmer 12 | . 3 . . . . 1 . 2 1 . 5 Grunt 25 | . . . 2 2 5 4 . 3 5 3 1 Brawler 2 | . . . . . . 2 . . . . . Duelist 2 | . . . . 1 1 . . . . . . Sentry 4 | . . . . . 1 2 . . . . 1 Demolisher 1 | . . . . . . . . . . . 1 Specialist 2 | . . . . . . . . . . . 2 Hunter 2 | . . . . 1 1 . . . . . . Programmer 1 | . . . . . . . . 1 . . . Behemoth 1 | . . . . . . . . . . 1 . Best Kill Streak 9 | . 4 . 1 5 3 9 . 3 5 2 4 Combat Bots Only 9 | . 3 . 1 3 3 9 . 3 3 2 4 Max Kills in Single Turn 4 | . 3 . 1 2 2 4 . 2 4 2 1 Gunslinging . | . . . . . . . . . . . . Exploded 4 | . 2 . . 2 2 4 . 2 3 2 . Melee 1 | . . . . . . . . . . . 1 Uniques/NPCs Destroyed . | . . . . . . . . . . . . Combat | -11 -10 -9 -9 -8 -7 -7 -7 -6 -6 -6 -5 -------- Run | Yrd Mat Mat Min Mat Fac Low Dat Pro Fac Ext Fac Hostile Shots Fired 873 | . 9 1 21 13 131 12 . 90 83 219 294 Missed 291 | . 2 . 6 6 43 2 . 31 33 88 80 Hits 582 | . 7 1 15 7 88 10 . 59 50 131 214 Melee 11 | . . . . . 8 . . . . . 3 Projectile 571 | . 7 1 15 7 80 10 . 59 50 131 211 AOE 7 | . . . . . . . . . . . 7 Critical Strikes 25 | . . . 1 2 5 1 . 2 2 7 5 Damage Taken 9691 | . 65 10 219 111 1312 253 . 675 756 2232 4058 Core 2227 | . 29 . 73 18 396 20 . 98 159 411 1023 Absorbed by Shields 337 | . . . . . . . . 118 . 211 8 Regen/Repaired (Parts) 75 | . . . . . . . . . . . 75 Core Remaining (%) 70 | 100 88 . 81 96 . . . 26 . 32 . Volleys Fired 162 | . 2 . 12 6 42 3 . 22 24 33 18 Largest 2 | . 2 . 2 2 2 2 . 2 2 2 2 Hottest 161 | . 60 . 110 60 130 110 . 104 125 161 161 Shots Fired 267 | . 5 . 21 11 54 5 . 39 45 57 30 Gun 177 | . . . 9 . 28 2 . 30 43 40 25 Cannon 28 | . . . 9 . 1 . . . . 13 5 Launcher 47 | . 5 . . 11 20 3 . 2 2 4 . Special 15 | . . . 3 . 5 . . 7 . . . Kinetic 68 | . . . . . 6 . . 23 20 14 5 Thermal 152 | . . . 21 . 28 2 . 14 23 39 25 Explosive 47 | . 5 . . 11 20 3 . 2 2 4 . Electromagnetic . | . . . . . . . . . . . . Robot Hit Streak 15 | . 1 . 7 8 15 2 . 10 5 9 8 Robot Miss Streak 9 | . . . 2 1 3 3 . 9 6 9 2 Penetration Max . | . . . . . . . . . . . . Secondary Targets 1 | . . . . . . . . . . 1 . Max Gunslinging Chain 1 | . . . . . . . . . . 1 . Shots Hit Robots 192 | . 1 . 14 5 33 3 . 24 24 40 48 Core Hits 229 | . 8 . 4 11 29 42 . 27 33 62 13 Critical Kills . | . . . . . . . . . . . . Critical Parts Destroyed 8 | . . . . . . . . . 1 . 7 Critical Strikes 15 | . . . 1 . 1 . . 3 2 . 8 Burn 6 | . . . 1 . 1 . . 3 1 . . Destroy 4 | . . . . . . . . . 1 . 3 Smash 5 | . . . . . . . . . . . 5 Melee Attacks 31 | . . . . . . . . . . . 31 Impact 31 | . . . . . . . . . . . 31 Slashing . | . . . . . . . . . . . . Piercing . | . . . . . . . . . . . . Sneak Attacks . | . . . . . . . . . . . . Combat Hostiles . | . . . . . . . . . . . . Follow-up Attacks 4 | . . . . . . . . . . . 4 Damage Inflicted 9017 | . 201 . 217 498 1170 1034 . 928 1213 2170 1586 Guns 2344 | . . . 75 . 301 . . 315 461 733 459 Cannons 464 | . . . 142 . 17 . . . . 213 92 Explosions 5068 | . 201 . . 498 794 1034 . 565 752 1224 . Melee 1017 | . . . . . . . . . . . 1017 Ramming 18 | . . . . . . . . . . . 18 Kinetic 871 | . . . . . 106 . . 219 197 257 92 Thermal 2444 | . . . 217 . 270 . . 144 264 1090 459 Explosive 4667 | . 201 . . 498 794 1034 . 565 752 823 . Electromagnetic . | . . . . . . . . . . . . Impact 1017 | . . . . . . . . . . . 1017 Slashing . | . . . . . . . . . . . . Piercing . | . . . . . . . . . . . . Highest Corruption 10 | . 4 . . . . . . 1 . . 10 Average Corruption 1 | . 3 . . . . . . 1 . . 10 Corruption Purged . | . . . . . . . . . . . . Corruption Blocked . | . . . . . . . . . . . . Effects 22 | . 3 . . . . . . 12 . . 7 Message Errors 9 | . 1 . . . . . . 5 . . 3 Matter Fused 5 | . . . . . . . . 4 . . 1 Heat Flow Errors 1 | . 1 . . . . . . . . . . Energy Discharges 3 | . . . . . . . . 1 . . 2 Data Loss (minor) 2 | . . . . . . . . 2 . . . Data Loss (major) 1 | . . . . . . . . . . . 1 Misfires 1 | . 1 . . . . . . . . . . Overload Shots . | . . . . . . . . . . . . Overflow Damage 362 | . . . 5 2 19 . . 25 . 39 272 Projectiles 5 | . . . 5 . . . . . . . . Explosions 85 | . . . . 2 19 . . 25 . 39 . Melee 272 | . . . . . . . . . . . 272 Knockbacks . | . . . . . . . . . . . . Impact . | . . . . . . . . . . . . Kinetic . | . . . . . . . . . . . . Secondary . | . . . . . . . . . . . . Self-Inflicted Damage 377 | . 19 . . . 63 50 . 107 . 133 5 Shots 16 | . 1 . . . 2 3 . 4 . 6 . Rammed 3 | . . . . . . . . . . . 3 Targets Rammed 6 | . . . . . . . . . . 1 5 Kicked 3 | . . . . . . . . . . 1 2 Crushed . | . . . . . . . . . . . . Highest Temperature 629 | . 142 . 365 2 299 123 . 268 20 320 629 Average Temperature 107 | . 63 . 236 2 131 74 . 70 8 92 116 Received Heat Transfer 2386 | . . 6 144 72 384 72 . 121 186 415 986 Effects 24 | . . . 3 . . . . . . . 21 Shutdowns 4 | . . . . . . . . . . . 4 Energy Bleed 2 | . . . . . . . . . . . 2 Short Circuit 3 | . . . 1 . . . . . . . 2 Damage (minor) 4 | . . . 2 . . . . . . . 2 Damage (major) 11 | . . . . . . . . . . . 11 Siege Activations . | . . . . . . . . . . . . Martial Activations . | . . . . . . . . . . . . Shielding Activations . | . . . . . . . . . . . . Robots Disrupted . | . . . . . . . . . . . . Combat Hostiles . | . . . . . . . . . . . . Robots Corrupted 5 | . . . . . . . . . . . 5 Combat Hostiles 5 | . . . . . . . . . . . 5 Parts Fried 6 | . . . . . . . . . . . 6 Impact Corruptions 8 | . . . . . . . . . . . 8 Robots Melted . | . . . . . . . . . . . . Combat Hostiles . | . . . . . . . . . . . . Parts Melted 7 | . . . 2 . 2 . . 1 . 1 1 Heat Transferred 4836 | . . . 592 . 729 . . 862 481 1366 806 Parts Sabotaged . | . . . . . . . . . . . . Parts Stolen . | . . . . . . . . . . . . Parts Stripped . | . . . . . . . . . . . . Power Chain Reactions . | . . . . . . . . . . . . Alert | -11 -10 -9 -9 -8 -7 -7 -7 -6 -6 -6 -5 ------- Run | Yrd Mat Mat Min Mat Fac Low Dat Pro Fac Ext Fac Maximum Alert Level 4 | . . . . . 1 . . . 4 4 3 Low Security (%) 34 | 100 100 100 100 100 98 . . . . . . Level 1 . | . . . . . 1 . . . . . . Level 2 15 | . . . . . . . . . . 32 25 Level 3 39 | . . . . . . . . . 92 33 74 Level 4 10 | . . . . . . . . . 7 33 . Level 5 . | . . . . . . . . . . . . High Security . | . . . . . . . . . . . . Max Security . | . . . . . . . . . . . . Peak Influence 1573 | . 94 20 40 183 222 . . . 1118 1573 938 Initial 750 | . . 20 . . 78 . . . 750 524 590 Average 573 | . 38 3 14 65 45 . . . 899 941 744 Influence Increases 5825 | . 110 16 52 233 513 180 . 340 1522 1779 1080 Destroy 0b10 Robot/C 2160 | . 60 . 40 80 160 180 . 200 340 720 380 Destroy 0b10 Robot/NC 120 | . 10 . . 10 . . . 10 50 35 5 Destroy Leader 368 | . 10 . 10 20 30 . . 40 72 94 92 Allied During Kill 1120 | . . . . . . . . 30 109 755 226 Successful Hack 54 | . . 1 . 23 . . . . 5 25 . Disable Machine 390 | . . . . 30 120 . . . 120 75 45 Anti-Garrison Action 150 | . . . . . 150 . . . . . . Destroy Structure 368 | . 30 . 2 25 53 . . . 76 60 122 Advance Influence 750 | . . . . . . . . . 750 . . Partial Spotted 30 | . . . . 30 . . . . . . . Lose Combat Pursuer 315 | . . 15 . 15 . . . 60 . 15 210 Influence Decreases 5027 | . 60 66 52 60 470 221 175 340 452 1642 1489 Entered New Map 1544 | . . 30 . . 95 81 175 . . 546 617 Time Decay 2153 | . 60 36 52 50 265 130 . 300 302 506 452 Search Patrol Dispatched 100 | . . . . . . . . . 100 . . Lost Part 660 | . . . . 10 110 10 . 40 50 190 250 Lost Ally 270 | . . . . . . . . . . 100 170 Purge Threat 300 | . . . . . . . . . . 300 . Squads Dispatched 28 | . . . . 1 4 . . . 9 3 11 Investigation 4 | . . . . . . . . . 4 . . Extermination 4 | . . . . . 2 . . . 1 . 1 Reinforcement 12 | . . . . 1 . . . . 2 2 7 Assault 3 | . . . . . 2 . . . . 1 . Garrison 5 | . . . . . . . . . 2 . 3 Intercept . | . . . . . . . . . . . . Searches Triggered 1 | . . . . . . . . . 1 . . Data Miner Redirects 2 | . . . . . . . . . 2 . . Construction Impeded 2 | . . . . . . . . . 1 1 . Haulers Reinforced 1 | . . . . . . . . . 1 . . Active Scanning Responses . | . . . . . . . . . . . . Cargo Convoy Interrupts 1 | . . . . . . . . . . . 1 Stealth | -11 -10 -9 -9 -8 -7 -7 -7 -6 -6 -6 -5 --------- Run | Yrd Mat Mat Min Mat Fac Low Dat Pro Fac Ext Fac Distress Signals 9 | . 1 1 . . . . . 1 . 3 3 Communications Jammed . | . . . . . . . . . . . . Distress Signals . | . . . . . . . . . . . . Times Spotted 154 | . 11 7 4 9 10 7 . 18 19 35 34 Peak Tracking Total 10 | . 7 4 2 6 4 7 . 5 4 5 10 Tactical Retreats 13 | . . 1 . 1 . . . 4 . 1 6 Traps | -11 -10 -9 -9 -8 -7 -7 -7 -6 -6 -6 -5 ------- Run | Yrd Mat Mat Min Mat Fac Low Dat Pro Fac Ext Fac Traps Triggered 6 | . 2 . . . 1 . . . . 1 2 Indirectly . | . . . . . . . . . . . . Trap Hack Attempts . | . . . . . . . . . . . . Triggered . | . . . . . . . . . . . . Disarmed . | . . . . . . . . . . . . Reprogrammed . | . . . . . . . . . . . . Reused . | . . . . . . . . . . . . Traps Extracted . | . . . . . . . . . . . . Installed . | . . . . . . . . . . . . Triggered . | . . . . . . . . . . . . Machines | -11 -10 -9 -9 -8 -7 -7 -7 -6 -6 -6 -5 ---------- Run | Yrd Mat Mat Min Mat Fac Low Dat Pro Fac Ext Fac Machines Disabled 29 | . 1 . . 2 9 1 . . 8 5 3 Max in Single Turn 4 | . 1 . . 1 4 1 . . 4 3 . Garrison Access 2 | . . . . . 1 . . . . . 1 Energy Cycler 1 | . . . . . . . . . . 1 . Machines Repaired . | . . . . . . . . . . . . Machines Dismantled 6 | . . . . . 5 1 . . . . . Machines Sabotaged . | . . . . . . . . . . . . Overloaded Fab Kills . | . . . . . . . . . . . . Hacking | -11 -10 -9 -9 -8 -7 -7 -7 -6 -6 -6 -5 --------- Run | Yrd Mat Mat Min Mat Fac Low Dat Pro Fac Ext Fac Machines Accessed 35 | . 1 2 . 6 5 . 4 1 6 7 3 Terminals 20 | . 1 1 . 6 2 . . 1 1 7 1 Fabricators 5 | . . . . . 3 . . . 2 . . Repair Stations 2 | . . . . . . . . . 1 . 1 Recycling Units 2 | . . 1 . . . . . . 1 . . Scanalyzers . | . . . . . . . . . . . . Garrison Access 2 | . . . . . . . . . 1 . 1 Total Hacks 102 | . 2 9 . 17 11 . 26 1 14 17 5 Successful 59 | . . 6 . 6 3 . 26 1 4 10 3 Failed 43 | . 2 3 . 11 8 . . . 10 7 2 Catastrophic 9 | . . 1 . . 2 . . . 2 3 1 Database Lockouts . | . . . . . . . . . . . . Manual 5 | . . 2 . . . . . . . 3 . Terminals 47 | . 2 2 . 17 4 . . 1 2 17 2 Fabricators 12 | . . . . . 7 . . . 5 . . Repair Stations 4 | . . . . . . . . . 2 . 2 Recycling Units 9 | . . 7 . . . . . . 2 . . Scanalyzers . | . . . . . . . . . . . . Garrison Access 4 | . . . . . . . . . 3 . 1 Terminal Hacks 45 | . . 1 . 6 . . 26 1 1 10 . Record 13 | . . . . 1 . . 11 1 . . . Part Schematic 8 | . . . . . . . 8 . . . . Robot Schematic 4 | . . . . . . . 4 . . . . Prototype ID Bank 6 | . . . . 2 . . 3 . . 1 . Open Door 2 | . . . . . . . . . . 2 . Open DSF 1 | . . . . . . . . . 1 . . Alert Level 4 | . . . . 1 . . . . . 3 . Unreport Threat 2 | . . . . . . . . . . 2 . Locate Traps 3 | . . 1 . 1 . . . . . 1 . Zone Layout 2 | . . . . 1 . . . . . 1 . Fabricator Hacks 6 | . . . . . 3 . . . 3 . . Network Status 2 | . . . . . 2 . . . . . . Load Schematic 2 | . . . . . . . . . 2 . . Build 2 | . . . . . 1 . . . 1 . . Repair Station Hacks 2 | . . . . . . . . . . . 2 Scan Component 1 | . . . . . . . . . . . 1 Repair 1 | . . . . . . . . . . . 1 Recycling Unit Hacks 5 | . . 5 . . . . . . . . . Recycle Component 1 | . . 1 . . . . . . . . . Process 1 | . . 1 . . . . . . . . . Retrieve Matter 2 | . . 2 . . . . . . . . . Retrieve Components 1 | . . 1 . . . . . . . . . Scanalyzer . | . . . . . . . . . . . . Garrison Access Hacks 1 | . . . . . . . . . . . 1 Seal Access 1 | . . . . . . . . . . . 1 Unauthorized Hacks . | . . . . . . . . . . . . Terminals . | . . . . . . . . . . . . Fabricators . | . . . . . . . . . . . . Repair Stations . | . . . . . . . . . . . . Recycling Units . | . . . . . . . . . . . . Scanalyzers . | . . . . . . . . . . . . Garrison Access . | . . . . . . . . . . . . Data Cores Recovered 1 | . . . . . . . . . . 1 . Used . | . . . . . . . . . . . . Hacking Detections 26 | . 1 1 . 6 4 . . 1 6 6 1 Full Trace Events 4 | . . . . . . . . . 4 . . Feedback Events . | . . . . . . . . . . . . Feedback Blocked . | . . . . . . . . . . . . Robot Schematics Acquired 4 | . . . . . . . 4 . . . . Robots Built . | . . . . . . . . . . . . Authchips . | . . . . . . . . . . . . Time 134 | . . . . . . . . . 134 . . Total Robot Build Rating . | . . . . . . . . . . . . Part Schematics Acquired 8 | . . . . . . . 8 . . . . Parts Built 2 | . . . . . 2 . . . . . . Authchips . | . . . . . . . . . . . . Time 117 | . . . . . 117 . . . . . . Total Part Build Rating 14 | . . . . . 14 . . . . . . Part Studies Acquired . | . . . . . . . . . . . . Parts Repaired 1 | . . . . . . . . . . . 1 Time 56 | . . . . . . . . . . . 56 Parts Recycled 1 | . . 1 . . . . . . . . . Recycled Matter 7 | . . 7 . . . . . . . . . Retrieved Matter 7 | . . 7 . . . . . . . . . Retrieved Components 2 | . . 2 . . . . . . . . . Parts Scanalyzed . | . . . . . . . . . . . . Part Schematics Acquired . | . . . . . . . . . . . . Parts Damaged . | . . . . . . . . . . . . Bothacking | -11 -10 -9 -9 -8 -7 -7 -7 -6 -6 -6 -5 ------------ Run | Yrd Mat Mat Min Mat Fac Low Dat Pro Fac Ext Fac Used RIF Installer . | . . . . . . . . . . . . Robots Hacked . | . . . . . . . . . . . . Non-combat . | . . . . . . . . . . . . Combat . | . . . . . . . . . . . . Robot Hacks Applied . | . . . . . . . . . . . . Relay Couplers Released 2 | . . . . . 2 . . . . . . Machine Destruction 2 | . . . . . 2 . . . . . . Fabnet Peak Effective % . | . . . . . . . . . . . . Robots Rewired 10 | . . . . . . . . . . 10 . Allies Hacked . | . . . . . . . . . . . . Hacks Repelled . | . . . . . . . . . . . . Allies | -11 -10 -9 -9 -8 -7 -7 -7 -6 -6 -6 -5 -------- Run | Yrd Mat Mat Min Mat Fac Low Dat Pro Fac Ext Fac Total Allies 19 | . . . . . . . . 1 . 18 . Largest Group 14 | . . . . . . . . 1 1 14 13 Highest-Rated Group 620 | . . . . . . . . 96 96 620 619 Highest-Rated Ally 159 | . . . . . . . . 96 96 159 159 Total Orders 5 | . . . . . . . . . . . 5 FOLLOW 1 | . . . . . . . . . . . 1 EXPLORE 4 | . . . . . . . . . . . 4 Ally Attacks 326 | . . . . . . . . 29 38 175 84 Total Damage 7431 | . . . . . . . . 572 1759 3994 1106 Kills 70 | . . . . . . . . 4 15 37 14 Allies Corrupted . | . . . . . . . . . . . . Allies Melted . | . . . . . . . . . . . . Intel | -11 -10 -9 -9 -8 -7 -7 -7 -6 -6 -6 -5 ------- Run | Yrd Mat Mat Min Mat Fac Low Dat Pro Fac Ext Fac Active Infowar (turns) 2914 | . 85 224 43 . 633 277 208 1 . 583 860 Sensors 1119 | . . . . . 633 277 208 1 . . . Terrain 352 | . 85 224 43 . . . . . . . . Machine Analysis 1174 | . . . . . . . . . . 557 617 Cloaking 2467 | . . . . . 538 277 208 1 . 583 860 Robot Analysis Total . | . . . . . . . . . . . . Derelict Logs Recovered 2 | . . . . . . . . 2 . . . Drone Launches 3 | . . . . . . . . . . . 3 Drone Recoveries 2 | . . . . . . . . . . . 2 Exploration | -11 -10 -9 -9 -8 -7 -7 -7 -6 -6 -6 -5 ------------- Run | Yrd Mat Mat Min Mat Fac Low Dat Pro Fac Ext Fac Turns Passed 7269 | 52 205 227 121 126 967 277 208 1933 660 1361 1132 Spaces Moved 4486 | 37 210 202 95 229 520 134 110 1084 391 813 661 Core 307 | 11 . . . . 76 . . 8 . 9 203 Treads 633 | . 5 . . . 39 . . 541 . 48 . Legs 2439 | 26 100 . . . 2 134 110 462 391 756 458 Wheels . | . . . . . . . . . . . . Hover 387 | . . . . . 387 . . . . . . Flight 720 | . 105 202 95 229 16 . . 73 . . . Fastest Speed 29 | 50 32 29 29 29 50 190 190 110 120 50 50 Average Speed 118 | 99 79 29 29 34 90 190 190 170 137 122 96 Slowest Speed 260 | 120 160 29 29 112 190 190 190 260 190 250 120 Overloaded Moves . | . . . . . . . . . . . . Propulsion Burnouts . | . . . . . . . . . . . . Robots Hopped 3 | . . . 1 2 . . . . . . . Potential Cave-ins 3 | . . . . . . . . 1 . 2 . Cave-ins Triggered . | . . . . . . . . . . . . Exploration Rate (%) 38 | 3 38 36 21 28 15 23 74 98 15 89 20 Regions Visited 11 Branch Regions 5 Pre-discovered Areas 2 | . . . . . . . 1 1 . . . Known Exits Taken 1 | . . . . . . . . . . 1 . Unknown Exits Taken 10 | 1 1 1 1 1 1 1 1 1 1 . . Scrap Searched 4 | . . . . . . . . 4 . . . Spaces Dug . | . . . . . . . . . . . . Terrain Destroyed 391 | . 28 . 2 32 84 49 . 64 55 76 1 Melee . | . . . . . . . . . . . . Projectile 6 | . . . 2 . 1 . . . . 2 1 AOE 385 | . 28 . . 32 83 49 . 64 55 74 . Terrain Rammed . | . . . . . . . . . . . . Walls Destroyed . | . . . . . . . . . . . . Machines Disabled . | . . . . . . . . . . . . Actions | -11 -10 -9 -9 -8 -7 -7 -7 -6 -6 -6 -5 --------- Run | Yrd Mat Mat Min Mat Fac Low Dat Pro Fac Ext Fac Total 5962 | 52 243 369 158 265 841 141 109 1124 464 1121 1075 Wait 862 | 2 . 163 47 19 172 . . . 19 138 302 Move 4469 | 36 209 201 92 224 519 133 109 1083 390 812 661 Hop 3 | . . . 1 2 . . . . . . . Pick Up 87 | 8 14 2 . 3 20 . . 5 4 17 14 Fast Attach 37 | . 1 . . 1 5 . . 6 10 8 6 Attach 69 | 6 2 2 1 1 17 1 . 5 1 19 14 Detach 7 | . . . . 3 . . . 1 . 2 1 Swap 54 | . 7 1 4 3 5 . . 1 9 12 12 Drop 55 | . 8 . 1 3 7 . . 1 7 13 15 Fire 162 | . 2 . 12 6 42 3 . 22 24 33 18 Melee 27 | . . . . . . . . . . . 27 Ram 3 | . . . . . . . . . . . 3 Kick 3 | . . . . . . . . . . 1 2 Crush . | . . . . . . . . . . . . Escape Stasis 1 | . . . . . . . . . . 1 . Rewire 65 | . . . . . . . . . . 65 . Trap . | . . . . . . . . . . . . Miscellaneous 58 | . . . . . 54 4 . . . . . Route ------- -11/Scrapyard -10/Materials (discovered 3 exits: *Mat / [*Min x2]) -9/Materials -9/Mines -8/Materials -7/Factory -7/Lower Caves -7/Data Miner -6/Proximity Caves -6/Factory (discovered 2 exits: Fac / *Ext) -6/Extension (discovered 2 exits: *Fac / [*Cet]) -5/Factory (discovered 1 exit: [*Fac]) History --------- Turn | Location | Event 2 | -11/Scrapyard | Discovered new exit (range 16) 53 | -11/Scrapyard | Entered Materials 136 | -10/Materials | Discovered new exit (range 9) 169 | -10/Materials | Discovered new exit (range 14) 231 | -10/Materials | Discovered new exit (range 7) 258 | -10/Materials | Entered another Materials area 258 | -9/Materials | Evolved 2 slots: Propulsion x1, Utility x1 452 | -9/Materials | Discovered new exit (range 15) 485 | -9/Materials | Entered Mines 508 | -9/Mines | Build established: Sprinter 536 | -9/Mines | Discovered new exit (range 10) 551 | -9/Mines | Excavation squad dispatched 551 | -9/Mines | A large section of the Mines collapsed 606 | -9/Mines | Entered Materials 606 | -8/Materials | Evolved 2 slots: Power x1, Propulsion x1 709 | -8/Materials | Discovered new exit (range 14) 732 | -8/Materials | Entered Factory 732 | -7/Factory | Evolved 2 slots: Utility x2 827 | -7/Factory | Lost 3 parts (1n1u1w) 877 | -7/Factory | Lost 4 parts (2n2w) 993 | -7/Factory | Build established: Mutant 1008 | -7/Factory | Found Prototype Launcher 1009 | -7/Factory | Identified Rocket Array 1157 | -7/Factory | Fabricated Imp. Cloaking Device (x2) 1651 | -7/Factory | Discovered new exit (range 16) 1657 | -7/Factory | Core integrity fell below 50% 1699 | -7/Factory | Entered Lower Caves 1798 | -7/Lower Caves | Attracted the attention of an 0b10 outpost 1827 | -7/Lower Caves | Destroyed 9 combat bots 1930 | -7/Lower Caves | A Derelict revealed a hidden shortcut to meet someone special 1976 | -7/Lower Caves | Entered Data Miner 1976 | -7/Data Miner | Discovered new exit (range 6) 2013 | -7/Data Miner | Met Data Miner 2087 | -7/Data Miner | Acquired the access code to Warlord's prototype stash 2087 | -7/Data Miner | Learned location of Section 7 (-2) 2130 | -7/Data Miner | Received God Mode back door access code from Data Miner 2184 | -7/Data Miner | Entered Proximity Caves 2217 | -6/Proximity Caves | Lost 6 parts (3n2u1w) 2286 | -6/Proximity Caves | Spotter reported a threat 2318 | -6/Proximity Caves | Spotter reported a threat 2474 | -6/Proximity Caves | Spotter reported a threat 2527 | -6/Proximity Caves | Spotter reported a threat 2542 | -6/Proximity Caves | Escorted by Enhanced Grunt 2589 | -6/Proximity Caves | Learned location of 1 exit from Factory 2608 | -6/Proximity Caves | Build established: Derelict-Mutant 2695 | -6/Proximity Caves | Spotter reported a threat 3134 | -6/Proximity Caves | Build established: Mutant 3218 | -6/Proximity Caves | Attracted the attention of an 0b10 checkpoint 3269 | -6/Proximity Caves | Lost 4 parts (1p1n2u) 4046 | -6/Proximity Caves | Discovered new exit (range 6) 4117 | -6/Proximity Caves | Entered Factory 4117 | -6/Factory | Accompanied by 1 ally 4117 | -6/Factory | Evolved 2 slots: Propulsion x1, Utility x1 4118 | -6/Factory | Identified exit to Factory 4445 | -6/Factory | Incoming investigation squad redirected 4467 | -6/Factory | Search patrols dispatched 4560 | -6/Factory | Build established: Scavenger-Mutant 4568 | -6/Factory | Lost 3 parts (3n) 4663 | -6/Factory | Incoming investigation squad redirected 4668 | -6/Factory | Garrison activated, responded to threat 4759 | -6/Factory | Discovered new exit (range 15) 4777 | -6/Factory | Entered Extension 4777 | -6/Extension | Accompanied by 1 ally 4975 | -6/Extension | Rescued a captive Derelict 4975 | -6/Extension | Rescued a captive Derelict 5013 | -6/Extension | Rescued a captive Derelict 5250 | -6/Extension | Rescued a captive Derelict 5250 | -6/Extension | Rescued a captive Derelict 5292 | -6/Extension | Rescued A7 5351 | -6/Extension | Spotted B-75 Beast 5358 | -6/Extension | Spotted B-75 Beast 5385 | -6/Extension | Destroyed B-75 Beast 5386 | -6/Extension | Core integrity fell below 50% 5399 | -6/Extension | Allies destroyed B-75 Beast 5429 | -6/Extension | Lost 17 parts (2p5n6u4w) 5477 | -6/Extension | First assault squad dispatched 5615 | -6/Extension | Discovered new exit (range 15) 5616 | -6/Extension | Discovered exit to Factory (range 15) 5676 | -6/Extension | Energy Cycler disabled 5677 | -6/Extension | Rescued a captive Derelict 5677 | -6/Extension | Rescued a captive Derelict 5678 | -6/Extension | Rescued a captive Derelict 6138 | -6/Extension | Entered Factory 6138 | -5/Factory | Accompanied by 13 allies (A7) 6138 | -5/Factory | Evolved 2 slots: Power x1, Utility x1 6373 | -5/Factory | Lost 3 allies 6418 | -5/Factory | Garrison activated, responded to threat 6476 | -5/Factory | Lost 3 allies 6521 | -5/Factory | Repaired Hvy. Beamcaster 6598 | -5/Factory | Lost 6 allies 7048 | -5/Factory | Lost 9 parts (4p3n1u1w) 7103 | -5/Factory | Discovered new exit (range 13) 7105 | -5/Factory | Core integrity fell below 50% 7111 | -5/Factory | System corruption reached 10% 7116 | -5/Factory | Cargo convoy interrupted 7155 | -5/Factory | Lost 14 parts (2p5n5u2w) 7160 | -5/Factory | Core integrity fell below 20% 7270 | -5/Factory | Destroyed by H-71 Marshal with Heavy Mass Driver Last Messages --------------- 07225_ System corrupted: Substantial component data lost. 07251_ Acquired 4 matter. 07251_ R-10 Processor collects Corrupted Gatling Laser. 07252_ ALERT: Suspicious intruders detected, dispatching Cutter reinforcements to area. 07261_ C-35 Carver suffers critical hit (Smash). 07261_ Destroyed Mic. Nuclear Core. 07261_ C-35 Carver system corrupted by crushing effect. 07265_ Powered Hammer severed. 07267_ Autogun severed. 07267_ R-10 Processor collects Autogun. 07268_ Slammed into C-35 Carver. 07269_ Slammed into H-71 Marshal. 07270_ Slammed into C-35 Carver. 07270_ H-71 Marshal calls for reinforcements. 07270_ ALERT: Hostile activity reported, dispatching reinforcements to area. Map ----- +----------------------------------------------------+ | #???????????# + """?????????????????????# | | #???#########+## # "T"?????????????????????# | | #???# ## # ????????????????????+ | | #???# ## #?""""""" #???????????????????# | | #???# ## #?""""""??????????????????????? | | #???#! ## #???"""???????????????????????? | | ##### ## +?????????????????????????????? | | #? + = = ## #?????????????????????????????? | | #???#% %%] ## ##??????#+#???????????????????? | | #???# =!! #% ######## ##################### | | ########+###### % | | %%% % % | | ############### | | #?????????????#% #######+##############+####### | | #????????######## #### #???????? ????? | | #????????# # #### #?????? ??? | | #####????# T + + [! #?????# #?? | | #????# # # !! #?????# #?? | | "" #????# # # ! #?????# """""" #?? | | G" #????# + # #?????# """""" #?? | | "" #????# #### # #?????# """""" #?? | | #????#####+##??# # ! #?????# """""" #?? | | #??????### ###?# ############????###???????#?? | | #??????# #?# #??????? ######???????????? | | #??????# ###R###### ????????? | | =#??????# " %%! ccH @c < ????????? | | #??????# =########## ????????? | | #??????# = #??????????? ######???????????? | | #??????#######?????????????##????????????????? | | ####?????????????????????????????????????????????? | | | | | | | | | | | | | | | | | | | | | | | | | | | | | | | | | | | | | | | | | +----------------------------------------------------+ Best States ------------- Heat Dissipation 59 Energy Generation 41 Energy Capacity 815 Matter Stores 300 Matter Capacity 400 Sight Range 16 Robot Scan Range 15 Terrain Scan Range 14 Terrain Scan Density 10 Cloak Strength 3 Additional Mass Support 6 Armor Coverage 600 Resistance: EM 25 Phase Shifting 5 Evasion (%) 64 Targeting Accuracy 6 Melee Accuracy 6 Armor Integrity Analysis 30 Recoil Reduction 2 Particle Charging 20 Salvage Targeting 2 Offensive Hacking 10 Defensive Hacking 12 Item Schematics ----------------- Combat Drone Bay | -7/Data Miner | Free Lgt. Regenerative Plating | -7/Data Miner | Free Cld. Aerolev Unit | -7/Data Miner | Free Exp. Targeting Computer | -7/Data Miner | Free Imp. Lightning Gun | -7/Data Miner | Free Linear Gravjet | -7/Data Miner | Free Hyp. Gauss Cannon | -7/Data Miner | Free Imp. Weapon Cycler | -7/Data Miner | Free Robot Schematics ------------------ H-66 Slayer | -7/Data Miner | Free L-41 Fighter | -7/Data Miner | Free M-22 Extractor | -7/Data Miner | Free M-28 Smith | -7/Data Miner | Free Fabricated ------------ Imp. Cloaking Device | x2 | -7/Factory | Preloaded Repaired ---------- Hvy. Beamcaster | 21% | -5/Factory Studied --------- None Alien Tech Used ----------------- None Achievements -------------- A Problem For Future Me Explosive Keycard Look Less Dangerous Next Time Maybe Next Time I'll Detach My Launcher Resistances Are Futile Sprinter Suspicious Well Done Challenges ------------ None Game ------ Seed RelayHypertargetingSteel Manual? 0 Play Time 01:44:27 Cumulative 125.1 hours Start 2026.06.26 @ 18:28:09 End 2026.06.26 @ 20:15:59 Sessions 1 Manual Loads 0 Difficulty Rogue Special Mode None Game No. 126 Rogue 126 Adventurer 0 Explorer 0 Win Type - Total 1 Types 0/0/1/0/0/0/0/0/0/0 Lore% 28 Gallery% 47 Achievement% 23 Wizard Run 0 Options --------- Layout 1 ASCII 0 Keyboard 0 Movement Mouse Keybinds 0 Fullscreen 1 Font 24/Smallcaps Map View 50x35 Zoom Use 0% Tactical HUD 1 Map Filters NONE Filters NONE Steam 1 RUN: 7b9cae41-07dc-4ca8-9b78-866107fdda9c